bitfinex/quotes_BTCUSD_20240810
["timestamp","ask_amount","ask_price","bid_price","bid_amount"]
[1723317316223,0.0823,60985.0,60984.0,0.09777131]
[1723317316450,0.09139357,60985.0,60984.0,0.09777131]
[1723317318388,0.09239357,60985.0,60984.0,0.09777131]
[1723317319032,0.09239357,60985.0,60984.0,0.081987]
[1723317319453,0.09139357,60985.0,60984.0,0.09777131]
[1723317319704,0.09239357,60985.0,60984.0,0.26174831]
[1723317319899,0.10239357,60985.0,60984.0,0.26174831]
[1723317321050,0.10239357,60985.0,60984.0,0.26266241]
[1723317323654,0.10239357,60985.0,60984.0,0.2468781]
[1723317323772,0.16289357,60985.0,60984.0,0.2468781]
[1723317324375,0.16289357,60985.0,60984.0,0.26266241]
[1723317324601,0.16289357,60985.0,60984.0,0.0829011]
[1723317325004,0.16289357,60985.0,60984.0,0.09868541]
[1723317325826,0.16289357,60985.0,60984.0,0.0009141]
[1723317327544,0.16289357,60985.0,60984.0,0.01669841]
[1723317328041,0.26289357,60985.0,60984.0,0.0009141]
[1723317328241,0.34488057,60985.0,60984.0,0.0009141]
[1723317328641,0.34388057,60985.0,60984.0,0.0009141]
[1723317329775,0.34488057,60985.0,60984.0,0.0009141]
[1723317330515,0.34488057,60985.0,60984.0,0.01669841]
[1723317333781,0.34488057,60985.0,60984.0,0.0009141]
[1723317333979,0.34488057,60985.0,60984.0,0.01669841]
[1723317334411,0.50885457,60985.0,60984.0,0.01669841]
[1723317335953,0.50885457,60985.0,60984.0,0.0009141]
[1723317336166,0.50885457,60985.0,60984.0,0.01669841]
[1723317336917,0.50885457,60985.0,60984.0,0.0009141]
[1723317339386,0.50885457,60985.0,60984.0,0.01669841]
[1723317341741,0.50885457,60985.0,60984.0,0.0009141]
[1723317343132,0.67282857,60985.0,60984.0,0.0009141]
[1723317343323,0.83680257,60985.0,60984.0,0.0009141]
[1723317344177,0.83580257,60985.0,60984.0,0.0009141]
[1723317344557,0.83980257,60985.0,60984.0,0.0009141]
[1723317344961,0.83580257,60985.0,60984.0,0.0009141]
[1723317345380,0.84080257,60985.0,60984.0,0.0009141]
[1723317345585,1.66461749,60985.0,60984.0,0.0009141]
[1723317345980,1.01383318,60985.0,60984.0,0.0009141]
[1723317346540,1.00961749,60985.0,60984.0,0.0009141]
[1723317346744,1.00883318,60985.0,60984.0,0.0009141]
[1723317346963,1.00383318,60985.0,60984.0,0.0009141]
[1723317347179,1.00383318,60985.0,60984.0,0.0019141]
[1723317347180,1.01183318,60985.0,60984.0,0.0019141]
[1723317347380,1.01283318,60985.0,60984.0,0.0019141]
[1723317347758,1.00961749,60985.0,60984.0,0.0019141]
[1723317349160,1.03359056,60985.0,60984.0,0.0029141]
[1723317349980,1.02359056,60985.0,60984.0,0.0019141]
[1723317350181,1.03759056,60985.0,60984.0,0.0029141]
[1723317350381,1.02759056,60985.0,60984.0,0.0019141]
[1723317350563,1.01359056,60985.0,60984.0,0.0009141]
[1723317350768,1.04159056,60985.0,60984.0,0.0019141]
[1723317350970,1.04159056,60985.0,60984.0,0.0009141]
[1723317350971,1.02337487,60985.0,60984.0,0.0009141]
[1723317351231,1.02759056,60985.0,60984.0,0.0009141]
[1723317351375,1.02759056,60985.0,60984.0,0.0019141]
[1723317351575,1.04159056,60985.0,60984.0,0.0019141]
[1723317352405,1.15765272,60985.0,60984.0,0.0019141]
[1723317352812,1.80765272,60985.0,60984.0,0.0019141]
[1723317353089,1.83065272,60985.0,60984.0,0.0019141]
[1723317353276,1.78902464,60985.0,60984.0,0.0019141]
[1723317353570,1.77469264,60985.0,60984.0,0.0019141]
[1723317354512,1.71459056,60985.0,60984.0,0.0019141]
[1723317355434,1.69159056,60985.0,60984.0,0.0019141]
[1723317355665,1.76979056,60985.0,60984.0,0.0019141]
[1723317355882,1.70931592,60985.0,60984.0,0.0019141]
[1723317357140,1.67069699,60985.0,60984.0,0.0019141]
[1723317360528,1.65669699,60985.0,60984.0,0.0019141]
[1723317360735,1.64269699,60985.0,60984.0,0.0009141]
[1723317360937,1.65669699,60985.0,60984.0,0.0019141]
[1723317361294,1.64269699,60985.0,60984.0,0.0009141]
[1723317361662,1.67069699,60985.0,60984.0,0.0029141]
[1723317363130,1.670488,60985.0,60984.0,0.0029141]
[1723317363509,1.736194,60985.0,60984.0,0.0029141]
[1723317363714,1.806194,60985.0,60984.0,0.0029141]
[1723317365257,1.9703437,60985.0,60984.0,0.0029141]
[1723317365589,1.9933437,60985.0,60984.0,0.0029141]
[1723317366135,1.829194,60985.0,60984.0,0.0029141]
[1723317368192,1.199194,60985.0,60984.0,0.0029141]
[1723317368514,2.079194,60985.0,60984.0,0.0029141]
[1723317368691,2.080026,60985.0,60984.0,0.0029141]
[1723317368868,2.15354821,60985.0,60984.0,0.0029141]
[1723317369068,2.15359461,60985.0,60984.0,0.0029141]
[1723317369250,2.21439498,60985.0,60984.0,0.0029141]
[1723317369451,2.14082637,60985.0,60984.0,0.0029141]
[1723317369850,2.15528901,60985.0,60984.0,0.0029141]
[1723317370862,2.080026,60985.0,60984.0,0.0029141]
[1723317371071,2.15532794,60985.0,60984.0,0.0029141]
[1723317371554,2.20434858,60985.0,60984.0,0.0029141]
[1723317372797,2.03843289,60985.0,60984.0,0.0029141]
[1723317373003,1.6680453,60985.0,60984.0,0.0029141]
[1723317373207,0.70243038,60985.0,60984.0,0.0029141]
[1723317373619,0.47275038,60985.0,60984.0,0.0029141]
[1723317373850,0.47275038,60985.0,60984.0,0.1436141]
[1723317374048,0.47275038,60985.0,60984.0,0.0641141]
[1723317375404,0.038832,60985.0,60984.0,0.56934041]
[1723317375614,0.038832,60985.0,60984.0,0.54156488]
[1723317375927,0.028832,60985.0,60984.0,0.70553801]
[1723317376128,0.028832,60985.0,60984.0,0.54156101]
[1723317376465,0.000832,60985.0,60984.0,0.53956101]
[1723317376746,0.017832,60985.0,60984.0,0.53956101]
[1723317378487,0.007832,60985.0,60984.0,0.53956101]
[1723317378907,0.007832,60985.0,60984.0,0.5395476]
[1723317379739,0.004832,60985.0,60984.0,0.5395476]
[1723317379891,0.005832,60985.0,60984.0,0.5395476]
[1723317380077,0.001832,60985.0,60984.0,0.5395476]
[1723317380278,0.001832,60985.0,60984.0,0.5435476]
[1723317380592,0.010832,60985.0,60984.0,0.7857246]
[1723317380937,0.010832,60985.0,60984.0,0.7115246]
[1723317381475,0.010832,60985.0,60984.0,0.5475476]
[1723317381957,0.010832,60985.0,60984.0,0.36778629]
[1723317382182,0.010832,60985.0,60984.0,0.3015826]
[1723317382380,0.010832,60985.0,60984.0,0.30158925]
[1723317382496,0.010832,60985.0,60984.0,0.15739841]
[1723317382901,0.010832,60985.0,60984.0,0.16339841]
[1723317383155,0.010832,60985.0,60984.0,0.24238641]
[1723317383377,0.010832,60985.0,60984.0,0.23938641]
[1723317383537,0.010832,60985.0,60984.0,0.24138641]
[1723317383735,0.010832,60985.0,60984.0,0.40536341]
[1723317384728,0.010832,60985.0,60984.0,0.54155578]
[1723317384729,0.012832,60985.0,60984.0,0.54155578]
[1723317385282,0.012832,60985.0,60984.0,0.53955578]
[1723317385668,0.015832,60985.0,60984.0,0.53954838]
[1723317385875,0.010832,60985.0,60984.0,0.53954838]
[1723317386087,0.010832,60985.0,60984.0,0.30258338]
[1723317386285,0.010832,60985.0,60984.0,0.38457138]
[1723317386470,0.010832,60985.0,60984.0,0.24838641]
[1723317386672,0.010832,60985.0,60984.0,0.24538641]
[1723317386870,0.010832,60985.0,60984.0,0.23938641]
[1723317387084,0.011832,60985.0,60984.0,0.24538641]
[1723317387644,0.010832,60985.0,60984.0,0.23938641]
[1723317387949,0.012832,60985.0,60984.0,0.24338641]
[1723317389589,0.012832,60985.0,60984.0,0.23938641]
[1723317389833,0.015832,60985.0,60984.0,0.15739841]
[1723317392090,0.013832,60985.0,60984.0,0.15739841]
[1723317392533,0.015832,60985.0,60984.0,0.15739841]
[1723317392894,0.013832,60985.0,60984.0,0.15739841]
[1723317393212,0.010832,60985.0,60984.0,0.15739841]
[1723317393415,0.012832,60985.0,60984.0,0.15739841]
[1723317393762,0.015832,60985.0,60984.0,0.15739841]
[1723317394402,0.015832,60985.0,60984.0,0.1416141]
[1723317394604,0.50520792,60985.0,60984.0,0.0009141]
[1723317394970,0.76918192,60985.0,60984.0,0.0009141]
[1723317395170,0.76718192,60985.0,60984.0,0.0009141]
[1723317395449,0.60320792,60985.0,60984.0,0.0009141]
[1723317395620,0.76418192,60985.0,60984.0,0.0009141]
[1723317395825,0.76418192,60985.0,60984.0,0.0029141]
[1723317396051,0.76418192,60985.0,60984.0,0.0049141]
[1723317396261,0.60020792,60985.0,60984.0,0.0029141]
[1723317396481,0.60020792,60985.0,60984.0,0.0009141]
[1723317396482,0.60220792,60985.0,60984.0,0.0009141]
[1723317396680,0.76918192,60985.0,60984.0,0.0009141]
[1723317398264,0.60520792,60985.0,60984.0,0.0009141]
[1723317398663,0.76918192,60985.0,60984.0,0.0009141]
[1723317399066,0.60520792,60985.0,60984.0,0.0009141]
[1723317400337,0.76918192,60985.0,60984.0,0.0009141]
[1723317400730,0.60520792,60985.0,60984.0,0.0009141]
[1723317401127,0.76918192,60985.0,60984.0,0.0009141]
[1723317403208,0.93315592,60985.0,60984.0,0.0009141]
[1723317403411,1.69282756,60985.0,60984.0,0.0009141]
[1723317403623,1.85706457,60985.0,60984.0,0.0009141]
[1723317403828,0.334222,60970.0,60969.0,0.00578431]
[1723317404027,0.66205192,60970.0,60969.0,0.00578431]
[1723317405691,0.59385192,60970.0,60969.0,0.00678431]
[1723317406421,0.58385192,60970.0,60969.0,0.00578431]
[1723317406784,0.102007,60970.0,60969.0,0.00678431]
[1723317406991,0.102007,60970.0,60969.0,0.15548431]
[1723317406992,0.02,60970.0,60969.0,0.15548431]
[1723317407217,0.02,60970.0,60969.0,0.221708]
[1723317407831,0.02,60970.0,60969.0,0.1397]
[1723317408085,0.03,60970.0,60969.0,0.1407]
[1723317408260,0.03,60970.0,60969.0,0.15648431]
[1723317408637,0.02,60970.0,60969.0,0.40150931]
[1723317408833,0.02,60970.0,60969.0,0.23749231]
[1723317409278,0.03,60970.0,60969.0,0.23849231]
[1723317409955,0.01,60970.0,60969.0,0.23649231]
[1723317410417,0.01,60970.0,60969.0,0.23749231]
[1723317411363,0.01,60970.0,60969.0,0.23849231]
[1723317415356,0.01,60970.0,60969.0,0.37563438]
[1723317416422,0.01,60970.0,60969.0,0.37463438]
[1723317416621,0.01,60970.0,60969.0,0.37363438]
[1723317417597,0.01,60970.0,60969.0,0.37363295]
[1723317417786,0.01,60970.0,60969.0,0.37563295]
[1723317418085,0.01,60970.0,60969.0,0.37563266]
[1723317418228,0.01,60970.0,60969.0,0.37363266]
[1723317418436,0.011,60970.0,60969.0,0.37363266]
[1723317418640,0.012,60970.0,60969.0,0.37363266]
[1723317419961,0.012,60970.0,60969.0,0.23493266]
[1723317420161,0.012,60970.0,60969.0,0.15292466]
[1723317420563,0.094007,60970.0,60969.0,0.00669951]
[1723317420970,0.094007,60970.0,60969.0,0.01669951]
[1723317420971,0.173807,60970.0,60969.0,0.01669951]
[1723317421673,0.171807,60970.0,60969.0,0.01669951]
[1723317421849,0.172807,60970.0,60969.0,0.01669951]
[1723317422205,0.173807,60970.0,60969.0,0.01669951]
[1723317425307,0.500837,60970.0,60969.0,0.00669951]
[1723317425540,0.335822,60970.0,60969.0,0.00669951]
[1723317425731,0.415022,60970.0,60969.0,0.0009152]
[1723317425891,0.416022,60970.0,60969.0,0.00669951]
[1723317427094,0.416022,60970.0,60969.0,0.01669951]
[1723317429233,0.416022,60970.0,60969.0,0.0009152]
[1723317429234,0.336222,60970.0,60969.0,0.0009152]
[1723317429443,0.012,60970.0,60969.0,0.08229951]
[1723317429685,0.012,60970.0,60969.0,0.70817248]
[1723317430857,0.011,60970.0,60969.0,0.70817248]
[1723317431061,0.011,60970.0,60969.0,0.70816134]
[1723317431443,0.01,60970.0,60969.0,0.71016134]
[1723317431836,0.1,60980.0,60974.0,0.01578431]
[1723317432041,0.1,60980.0,60979.0,0.01578431]
[1723317432042,0.11,60980.0,60979.0,0.01578431]
[1723317432291,0.11,60980.0,60979.0,0.07758431]
[1723317432846,0.11,60980.0,60979.0,0.15957931]
[1723317433052,0.11,60980.0,60979.0,0.29579654]
[1723317433053,0.01,60980.0,60979.0,0.29579654]
[1723317433247,0.11,60980.0,60979.0,0.29579654]
[1723317433912,0.11,60980.0,60979.0,0.21380154]
[1723317434110,0.128,60980.0,60979.0,0.21380154]
[1723317434285,0.019,60980.0,60979.0,0.21380154]
[1723317434664,0.015,60980.0,60979.0,0.21380154]
[1723317434864,0.013,60980.0,60979.0,0.21380154]
[1723317435182,0.017,60980.0,60979.0,0.21380154]
[1723317435390,0.01,60980.0,60979.0,0.21380154]
[1723317435634,0.01,60980.0,60979.0,0.07758431]
[1723317435814,0.014,60980.0,60979.0,0.21378811]
[1723317437904,0.014,60980.0,60979.0,0.29578311]
[1723317438379,0.014,60980.0,60979.0,0.37478311]
[1723317438915,0.014,60980.0,60979.0,0.94477803]
[1723317438916,0.004,60980.0,60979.0,0.94477803]
[1723317439115,0.004,60980.0,60979.0,1.25054722]
[1723317439324,0.004,60980.0,60979.0,1.17685854]
[1723317439585,0.004,60980.0,60979.0,1.27510044]
[1723317439793,0.004,60980.0,60979.0,0.97256423]
[1723317440091,0.004,60980.0,60979.0,1.29963513]
[1723317440303,0.002,60980.0,60979.0,1.17683276]
[1723317440504,0.002,60980.0,60979.0,1.29963513]
[1723317440738,0.001,60980.0,60979.0,1.29963513]
[1723317441271,0.000832,60984.0,60983.0,0.56653431]
[1723317441471,0.000832,60984.0,60983.0,0.82999077]
[1723317441674,0.000832,60984.0,60983.0,0.70271474]
[1723317441908,0.000832,60984.0,60983.0,0.53873474]
[1723317442774,0.000832,60984.0,60983.0,0.70271474]
[1723317443095,0.000832,60984.0,60983.0,0.70271596]
[1723317443502,0.001832,60984.0,60983.0,0.70271596]
[1723317443703,0.002832,60984.0,60983.0,0.70271596]
[1723317444706,0.002832,60984.0,60983.0,0.53873596]
[1723317445047,0.002832,60984.0,60983.0,0.70271596]
[1723317445165,0.002832,60984.0,60983.0,0.53873596]
[1723317446034,0.002832,60984.0,60983.0,0.70271596]
[1723317446431,0.002832,60984.0,60983.0,0.70271614]
[1723317446840,0.002832,60984.0,60983.0,0.53873614]
[1723317447833,0.012832,60984.0,60983.0,0.37475614]
[1723317448462,0.02010829,60984.0,60983.0,0.37475614]
[1723317448823,0.02010829,60984.0,60983.0,0.53873614]
[1723317450030,0.02010829,60984.0,60983.0,0.53873959]
[1723317450456,0.02010829,60984.0,60983.0,0.40255431]
[1723317450630,0.02010829,60984.0,60983.0,0.53873959]
[1723317452771,0.02010829,60984.0,60983.0,0.23857431]
[1723317453190,0.02010829,60984.0,60983.0,0.15957431]
[1723317456373,0.012832,60984.0,60983.0,0.29576704]
[1723317456972,0.012832,60984.0,60983.0,0.15957431]
[1723317457198,0.012832,60984.0,60983.0,0.29576664]
[1723317458378,0.012832,60984.0,60983.0,0.23396664]
[1723317460914,0.012832,60984.0,60983.0,0.09777431]
[1723317461118,0.012832,60984.0,60983.0,0.23396111]
[1723317461934,0.012832,60984.0,60983.0,0.23487631]
[1723317467575,0.012832,60984.0,60983.0,0.23487625]
[1723317470075,0.012832,60984.0,60983.0,0.15288625]
[1723317470918,0.012832,60984.0,60983.0,0.23487625]
[1723317471404,0.012832,60984.0,60983.0,0.15288625]
[1723317471613,0.012832,60984.0,60983.0,0.01669951]
[1723317471805,0.012832,60984.0,60983.0,0.13711006]
[1723317472051,0.012832,60984.0,60983.0,0.15289437]
[1723317474684,0.012832,60984.0,60983.0,0.15289239]
[1723317478207,0.012832,60984.0,60983.0,0.15289429]
[1723317479663,0.012832,60984.0,60983.0,0.23488429]
[1723317480070,0.002832,60984.0,60983.0,0.92046104]
[1723317480284,0.002832,60984.0,60983.0,1.37492019]
[1723317480499,0.002832,60984.0,60983.0,1.54967692]
[1723317480955,0.002832,60984.0,60983.0,1.32940449]
[1723317481084,0.002832,60984.0,60983.0,1.70750942]
[1723317481535,0.002832,60984.0,60983.0,1.5599796]
[1723317481737,0.002832,60984.0,60983.0,1.5699796]
[1723317481996,0.001832,60984.0,60983.0,1.76862296]
[1723317482248,0.000832,60985.0,60984.0,0.75630331]
[1723317482414,0.000831,60989.0,60988.0,0.11976731]
[1723317482621,0.000831,60989.0,60988.0,1.67549403]
[1723317483224,0.000831,60989.0,60988.0,1.83946003]
[1723317483639,0.001831,60989.0,60988.0,1.99883644]
[1723317484282,0.001831,60989.0,60988.0,1.99880136]
[1723317484471,0.001831,60989.0,60988.0,1.99880764]
[1723317484678,0.001831,60989.0,60988.0,1.9987592]
[1723317484873,0.00833,61005.0,61004.0,0.73611431]
[1723317485079,0.00833,61005.0,61004.0,1.21238839]
[1723317485347,0.00833,61005.0,61004.0,1.2781006]
[1723317485592,0.00833,61005.0,61004.0,1.40074623]
[1723317485760,0.00833,61005.0,61004.0,1.74516673]
[1723317485966,0.00833,61005.0,61004.0,2.1688981]
[1723317486102,0.00833,61005.0,61004.0,2.02158191]
[1723317486315,0.00833,61005.0,61004.0,1.68980235]
[1723317486570,0.00833,61005.0,61004.0,1.58124373]
[1723317486768,0.00833,61005.0,61004.0,1.59118871]
[1723317486980,0.00833,61005.0,61004.0,1.70374277]
[1723317487125,0.00833,61005.0,61004.0,1.85076634]
[1723317487336,0.00833,61005.0,61004.0,1.70374277]
[1723317487538,0.000832,61016.0,61008.0,0.03778431]
[1723317487715,0.000832,61016.0,61010.0,0.26433731]
[1723317487916,0.000832,61016.0,61010.0,1.47967781]
[1723317488117,0.000832,61016.0,61010.0,1.68362209]
[1723317488335,0.000832,61016.0,61015.0,0.75601331]
[1723317488548,0.000832,61016.0,61015.0,1.78262607]
[1723317488860,0.000832,61025.0,61023.0,0.59006431]
[1723317489087,0.000832,61025.0,61023.0,1.58369305]
[1723317489249,0.000832,61025.0,61023.0,1.42232278]
[1723317489643,0.000832,61025.0,61023.0,1.44432278]
[1723317489851,0.000832,61025.0,61023.0,1.51235205]
[1723317490274,0.000832,61025.0,61023.0,1.45232278]
[1723317490478,0.000832,61041.0,61040.0,0.58917531]
[1723317490717,0.000832,61041.0,61040.0,1.25828978]
[1723317490921,0.000832,61041.0,61040.0,1.42211578]
[1723317491124,0.000832,61041.0,61040.0,1.42204166]
[1723317491296,0.000832,61041.0,61040.0,1.45987586]
[1723317491499,0.000832,61041.0,61040.0,1.34585043]
[1723317491786,0.000832,61041.0,61040.0,1.48187082]
[1723317492033,0.000832,61041.0,61040.0,1.76029652]
[1723317492279,0.00832,61075.0,61041.0,0.0378342]
[1723317492517,0.0774,61083.0,61068.0,0.26141031]
[1723317492518,0.0101,61069.0,61068.0,0.26141031]
[1723317492730,0.0001,61069.0,61068.0,0.42522523]
[1723317492960,0.0001,61069.0,61068.0,0.26147423]
[1723317493531,0.0001,61069.0,61068.0,0.58897623]
[1723317493746,0.0001,61069.0,61068.0,0.75272723]
[1723317494006,0.0001,61069.0,61068.0,1.05797823]
[1723317494261,0.0001,61069.0,61068.0,1.14025953]
[1723317494523,0.0021,61069.0,61068.0,0.96450853]
[1723317495016,0.0001,61069.0,61068.0,0.96450853]
[1723317495343,0.0001,61069.0,61068.0,0.98450853]
[1723317496090,0.0001,61069.0,61068.0,0.97650853]
[1723317496273,0.0011,61069.0,61068.0,1.12247522]
[1723317496467,0.0011,61069.0,61068.0,1.17262147]
[1723317497049,0.001932,61069.0,61068.0,1.17262147]
[1723317497492,0.001932,61069.0,61068.0,1.21040578]
[1723317497898,0.001932,61069.0,61068.0,1.19840578]
[1723317498101,0.001932,61069.0,61068.0,1.20840578]
[1723317498274,0.001932,61069.0,61068.0,1.17262147]
[1723317498490,0.001932,61069.0,61068.0,1.43637247]
[1723317498678,0.0001,61089.0,61072.0,0.774693]
[1723317498975,0.0001,61089.0,61072.0,1.61877995]
[1723317499412,0.0001,61089.0,61088.0,0.01578431]
[1723317499625,0.0001,61089.0,61088.0,1.11864223]
[1723317499843,0.0001,61089.0,61088.0,1.12064223]
[1723317500055,0.01,61095.0,61094.0,0.01578431]
[1723317500252,0.0636,61096.0,61079.0,0.06]
[1723317500253,0.255526,61093.0,61092.0,0.01578431]
[1723317500651,0.34017112,61093.0,61092.0,0.01578431]
[1723317500805,0.09464512,61093.0,61092.0,0.01578431]
[1723317501046,0.34017112,61093.0,61092.0,0.01578431]
[1723317501241,0.09464512,61093.0,61092.0,0.01578431]
[1723317501445,0.09464512,61093.0,61092.0,0.09762731]
[1723317501670,0.09464512,61093.0,61092.0,0.01578431]
[1723317502228,0.17648712,61093.0,61092.0,0.01578431]
[1723317502446,0.09464512,61093.0,61092.0,0.01578431]
[1723317502803,0.17648712,61093.0,61092.0,0.01578431]
[1723317502989,0.01,61087.0,61086.0,0.01578431]
[1723317503185,0.01730622,61087.0,61086.0,0.26133831]
[1723317503621,0.01,61087.0,61086.0,0.09763531]
[1723317503825,0.23285,61087.0,61086.0,0.01578431]
[1723317504028,0.091855,61083.0,61082.0,0.01578431]
[1723317504420,0.091855,61083.0,61068.0,0.06]
[1723317504421,0.09472237,61083.0,61079.0,0.08186]
[1723317504581,0.01,61080.0,61079.0,0.01578431]
[1723317504806,0.01,61080.0,61079.0,0.09764531]
[1723317505007,0.0172982,61080.0,61079.0,0.09764531]
[1723317505164,0.0172982,61080.0,61079.0,0.245583]
[1723317505531,0.01,61080.0,61079.0,0.245583]
[1723317506015,0.01,61080.0,61079.0,0.248583]
[1723317506200,0.01,61080.0,61079.0,0.26436731]
[1723317506413,0.01,61080.0,61079.0,0.01878431]
[1723317506626,0.26284533,61080.0,61079.0,0.007]
[1723317506835,0.50396433,61080.0,61079.0,0.007]
[1723317507039,0.50384533,61080.0,61079.0,0.007]
[1723317507242,0.496578,61080.0,61079.0,0.007]
[1723317507454,0.50385591,61080.0,61079.0,0.003]
[1723317507663,0.66767083,61080.0,61079.0,0.003]
[1723317507878,0.91843495,61080.0,61079.0,0.003]
[1723317508080,0.163728,61077.0,61071.0,0.01578431]
[1723317508293,0.08187,61072.0,61071.0,0.01578431]
[1723317508717,0.08187,61072.0,61067.0,0.01578431]
[1723317508718,0.01,61068.0,61067.0,0.01578431]
[1723317508921,0.0774,61067.0,61065.0,0.01578431]
[1723317509163,0.01,61066.0,61065.0,0.26142231]
[1723317509584,0.017235,61066.0,61065.0,0.245638]
[1723317509787,0.017235,61066.0,61065.0,0.409397]
[1723317509990,0.01,61066.0,61065.0,0.409397]
[1723317510451,0.011,61066.0,61065.0,0.418397]
[1723317511097,0.011,61066.0,61065.0,0.43418131]
[1723317511314,0.001,61066.0,61065.0,0.84325523]
[1723317511519,0.001,61066.0,61065.0,0.90325523]
[1723317511717,0.01,61074.0,61073.0,0.01578431]
[1723317511919,0.01,61074.0,61073.0,0.26139131]
[1723317512126,0.01720165,61074.0,61073.0,0.409345]
[1723317512325,0.01,61077.0,61076.0,0.26137931]
[1723317512555,0.01,61078.0,61077.0,0.26137431]
[1723317512732,0.01,61078.0,61077.0,0.409317]
[1723317513352,0.01,61078.0,61077.0,0.24559]
[1723317513700,0.01,61078.0,61077.0,0.09764731]
[1723317514099,0.01,61078.0,61077.0,0.26137431]
[1723317514100,0.01722313,61078.0,61077.0,0.26137431]
[1723317514300,0.01722313,61078.0,61077.0,0.42510131]
[1723317514859,0.00722313,61078.0,61077.0,0.58891623]
[1723317515145,0.00722313,61078.0,61077.0,0.40940492]
[1723317515430,0.01,61080.0,61079.0,0.245583]
[1723317515804,0.01721774,61080.0,61079.0,0.01578431]
[1723317516237,0.01,61080.0,61079.0,0.01578431]
[1723317516442,0.01,61080.0,61074.0,0.01578431]
[1723317516443,0.01,61075.0,61074.0,0.01578431]
[1723317516689,0.01,61075.0,61074.0,0.09765131]
[1723317516905,0.01724465,61075.0,61074.0,0.01578431]
[1723317517116,0.01724465,61075.0,61074.0,0.081867]
[1723317518546,0.01724465,61075.0,61074.0,0.084867]
[1723317518754,0.01724465,61075.0,61074.0,0.081867]
[1723317519311,0.01724465,61075.0,61074.0,0.01678431]
[1723317519312,0.10044465,61075.0,61074.0,0.01678431]
[1723317519515,0.10044465,61075.0,61074.0,0.13898496]
[1723317519712,0.10044465,61075.0,61074.0,0.005]
[1723317519934,0.10044465,61075.0,61074.0,0.01778431]
[1723317520360,0.10044465,61075.0,61074.0,0.15677552]
[1723317520910,0.10044465,61075.0,61074.0,0.15477552]
[1723317521300,0.10044465,61075.0,61074.0,0.15677552]
[1723317521705,0.10044465,61075.0,61074.0,0.15377552]
[1723317521908,0.10044465,61075.0,61074.0,0.15377571]
[1723317522164,0.10044465,61075.0,61074.0,0.15577571]
[1723317522398,0.10244465,61075.0,61074.0,0.15577571]
[1723317522601,0.10244465,61075.0,61074.0,0.1359914]
[1723317522733,0.18631065,61075.0,61074.0,0.1359914]
[1723317522933,0.081868,61074.0,61070.0,0.01578431]
[1723317523228,0.01,61070.0,61069.0,0.01578431]
[1723317523429,0.01,61070.0,61069.0,0.23365897]
[1723317523619,0.01722878,61070.0,61069.0,0.15178497]
[1723317524227,0.01722878,61070.0,61069.0,0.23365897]
[1723317525581,0.01722878,61070.0,61069.0,0.39940797]
[1723317525935,0.01,61070.0,61069.0,0.39940805]
[1723317526152,0.01,61070.0,61069.0,0.40240805]
[1723317526955,0.00722852,61070.0,61069.0,0.56615705]
[1723317527156,0.01722852,61070.0,61069.0,0.81659586]
[1723317527394,0.01,61070.0,61069.0,0.65284686]
[1723317527592,0.01,61072.0,61071.0,0.42514131]
[1723317527780,0.01,61072.0,61071.0,0.66361617]
[1723317527980,0.01,61075.0,61074.0,0.163467]
[1723317528278,0.01,61075.0,61074.0,0.47898705]
[1723317529158,0.01,61075.0,61074.0,0.47897033]
[1723317529471,0.1832,61085.0,61074.0,0.47897033]
[1723317529472,0.01,61079.0,61078.0,0.09764631]
[1723317529676,0.01,61079.0,61078.0,0.39735533]
[1723317529891,0.01,61079.0,61078.0,0.56108033]
[1723317530228,0.01,61079.0,61078.0,0.72480533]
[1723317531155,0.01,61079.0,61078.0,0.56108033]
[1723317531437,0.01,61079.0,61078.0,0.54529602]
[1723317531655,0.01,61079.0,61078.0,0.59336643]
[1723317531894,0.01,61079.0,61078.0,0.59436643]
[1723317532353,0.011,61079.0,61078.0,0.56208033]
[1723317532590,0.001,61079.0,61078.0,1.02130598]
[1723317532796,0.01,61081.0,61080.0,0.409297]
[1723317532996,0.01,61081.0,61080.0,0.94603427]
[1723317533406,0.01,61081.0,61080.0,0.92162728]
[1723317533583,0.01,61081.0,61080.0,0.97053552]
[1723317534146,0.01,61081.0,61080.0,0.95351494]
[1723317534345,0.01,61081.0,61080.0,0.96929925]
[1723317534632,0.01,61081.0,61080.0,1.09144998]
[1723317534833,0.01,61081.0,61080.0,1.07566567]
[1723317535258,0.01,61081.0,61080.0,1.06709924]
[1723317535734,0.01,61081.0,61080.0,1.09244998]
[1723317535981,0.000831,61087.0,61086.0,0.01578431]
[1723317536193,0.000831,61087.0,61086.0,0.71578589]
[1723317536419,0.000831,61087.0,61086.0,1.0589762]
[1723317536595,0.000831,61087.0,61086.0,1.23379003]
[1723317536839,0.000831,61087.0,61086.0,1.0589762]
[1723317537039,0.000831,61087.0,61086.0,0.88850388]
[1723317537466,0.000831,61087.0,61086.0,0.75255923]
[1723317537673,0.000831,61087.0,61086.0,0.888509]
[1723317537880,0.012831,61087.0,61086.0,0.72469408]
[1723317538219,0.002831,61087.0,61086.0,0.72469408]
[1723317538415,0.012831,61087.0,61086.0,0.888509]
[1723317538845,0.012831,61087.0,61086.0,1.01086368]
[1723317539055,0.005831,61087.0,61086.0,1.01086368]
[1723317539227,0.005831,61087.0,61086.0,0.888509]
[1723317539427,0.005831,61087.0,61086.0,0.87272469]
[1723317539878,0.005831,61087.0,61086.0,0.888509]
[1723317540651,0.005831,61087.0,61086.0,0.83464968]
[1723317541007,0.015831,61087.0,61086.0,0.60993669]
[1723317541425,0.015831,61087.0,61086.0,0.56098749]
[1723317542178,0.015831,61087.0,61086.0,0.72469939]
[1723317546330,0.005831,61087.0,61086.0,0.88851431]
[1723317546572,0.005831,61087.0,61086.0,1.03291431]
[1723317546782,0.005831,61087.0,61086.0,1.0660792]
[1723317547006,0.005831,61087.0,61086.0,1.01711386]
[1723317547398,0.005831,61087.0,61086.0,1.03289817]
[1723317548063,0.005831,61087.0,61086.0,1.29773503]
[1723317548275,0.005831,61087.0,61086.0,1.43586185]
[1723317548479,0.005831,61087.0,61086.0,1.33793876]
[1723317548681,0.005831,61087.0,61086.0,1.33793665]
[1723317550057,0.005831,61087.0,61086.0,1.33792554]
[1723317550265,0.005831,61087.0,61086.0,1.13401974]
[1723317550481,0.005831,61087.0,61086.0,1.26456228]